bitfinex/quotes_ETHUSD_20240827
["timestamp","ask_amount","ask_price","bid_price","bid_amount"]
[1724796404228,9.9475,2487.8,2487.0,3.08040633]
[1724796404431,0.05429796,2487.4,2487.0,3.0]
[1724796404734,9.9475,2487.8,2487.0,3.0]
[1724796404896,0.05429796,2487.3,2487.0,3.0]
[1724796405093,0.05429796,2487.3,2486.5,5.76509804]
[1724796405094,9.9361,2487.6,2486.5,5.76509804]
[1724796405405,9.9361,2487.1,2486.5,0.122241]
[1724796406013,0.604145,2487.0,2486.5,0.122241]
[1724796406211,0.054145,2487.0,2486.5,0.122241]
[1724796406456,0.054145,2487.0,2486.6,5.64285704]
[1724796406875,9.9361,2487.1,2486.5,0.122241]
[1724796407080,0.05234016,2486.9,2486.5,0.122241]
[1724796407282,9.9361,2487.1,2486.5,0.122241]
[1724796407438,0.05234016,2486.8,2486.5,0.122241]
[1724796407638,0.55,2487.0,2486.5,0.122241]
[1724796407880,0.05234016,2486.7,2486.5,0.122241]
[1724796408089,1.04861,2486.9,2486.5,0.122241]
[1724796408378,9.9361,2486.6,2486.5,0.122241]
[1724796408589,9.98794825,2486.6,2486.5,0.122241]
[1724796408767,0.05184825,2486.6,2486.5,0.122241]
[1724796409091,10.4861,2487.0,2486.5,0.122241]
[1724796409389,9.9361,2487.2,2486.6,5.64285704]
[1724796409680,0.05184825,2487.1,2487.0,5.64285704]
[1724796409840,0.05184825,2487.1,2487.0,8.64285704]
[1724796410037,9.9361,2487.9,2487.0,8.64285704]
[1724796410283,9.9361,2487.9,2487.1,3.0]
[1724796410580,0.05012025,2487.8,2487.1,3.0]
[1724796410938,1.04874228,2487.8,2487.1,3.0]
[1724796411142,1.04874228,2487.8,2487.1,3.08040506]
[1724796411378,1.04874228,2487.8,2487.1,3.08040444]
[1724796411598,0.05012025,2487.8,2487.1,3.08040444]
[1724796411772,0.05012025,2487.8,2487.1,3.0]
[1724796412383,0.05012025,2487.8,2487.2,0.08040439]
[1724796412789,0.05012025,2487.8,2487.1,3.0]
[1724796413448,0.05012025,2487.8,2487.2,0.08039819]
[1724796413649,0.05012025,2487.8,2487.4,5.64285704]
[1724796413884,9.0519,2488.3,2487.5,3.0]
[1724796414089,0.04943322,2487.7,2487.5,3.0]
[1724796414311,1.45519,2488.2,2487.5,3.0]
[1724796414517,0.04943322,2487.6,2487.5,3.0]
[1724796414684,1.45519,2488.2,2487.5,3.0]
[1724796414890,9.0519,2488.8,2487.5,3.0]
[1724796415193,9.0519,2488.8,2487.8,5.64285704]
[1724796415390,0.04943322,2488.7,2487.9,3.0]
[1724796415797,0.04943322,2488.7,2487.4,5.64285704]
[1724796415798,0.04943322,2488.7,2487.4,8.64285704]
[1724796416030,0.95956654,2488.7,2487.4,8.64285704]
[1724796416239,0.95956654,2488.7,2487.8,5.64285704]
[1724796416444,0.95956654,2488.7,2487.9,3.08037701]
[1724796416445,0.04943322,2488.7,2487.9,3.08037701]
[1724796416590,0.04943322,2488.7,2487.5,5.64285704]
[1724796416792,9.0519,2488.6,2486.6,9.2314]
[1724796416994,10.99009011,2488.5,2486.9,0.4023]
[1724796417193,10.99009011,2488.5,2486.8,5.64285704]
[1724796417194,9.0519,2488.3,2486.8,5.64285704]
[1724796417507,0.55,2488.2,2486.8,5.64285704]
[1724796417713,0.60041642,2488.2,2486.9,0.08041395]
[1724796417943,0.96523164,2488.1,2486.8,5.64285704]
[1724796418250,0.55,2488.0,2486.8,5.64285704]
[1724796418406,0.59994667,2488.0,2486.8,5.64285704]
[1724796418849,0.04994667,2488.0,2486.9,0.08040839]
[1724796419015,0.04994667,2488.0,2486.6,9.2314]
[1724796419016,0.04994667,2488.0,2487.2,5.64285704]
[1724796419220,0.04994667,2488.0,2487.3,0.08039866]
[1724796419531,9.0519,2488.3,2487.3,3.08039865]
[1724796419844,9.95709,2488.3,2487.3,3.08039865]
[1724796420056,0.05003408,2488.2,2487.6,5.64285704]
[1724796420267,0.05003408,2488.2,2487.7,3.0]
[1724796420484,0.05003408,2488.2,2487.8,0.08038155]
[1724796420768,9.0519,2488.7,2487.7,3.0]
[1724796421068,9.0519,2488.2,2487.3,3.0]
[1724796421432,9.0519,2488.2,2487.4,0.08039687]
[1724796421579,0.72952198,2489.0,2487.3,3.0]
[1724796421580,0.05062394,2488.1,2487.6,5.64285704]
[1724796421879,9.0519,2488.5,2487.7,3.0]
[1724796422176,9.0519,2487.9,2486.8,5.64285704]
[1724796422376,0.05062394,2487.8,2486.8,5.64285704]
[1724796422877,0.05062394,2487.8,2486.9,0.08041553]
[1724796423461,0.05062394,2487.8,2487.2,5.64285704]
[1724796423668,0.05062394,2487.8,2487.3,3.08039095]
[1724796423867,9.0519,2488.3,2487.3,3.08039095]
[1724796424069,0.05047104,2487.7,2487.6,5.64285704]
[1724796424264,9.0519,2488.3,2487.6,8.64285704]
[1724796424450,9.0519,2488.3,2487.7,3.0]
[1724796424777,9.0519,2488.3,2487.7,3.08038695]
[1724796425084,9.0519,2489.1,2488.0,14.87425704]
[1724796425300,10.1394705,2489.1,2488.4,5.64285704]
[1724796425458,10.1394705,2489.1,2488.1,3.08036327]
[1724796425459,10.1394705,2489.1,2488.1,3.0]
[1724796426055,10.1394705,2489.1,2487.6,5.64285704]
[1724796426264,9.0519,2488.9,2487.6,5.64285704]
[1724796426873,9.0519,2488.9,2487.3,9.2314]
[1724796427387,1.08689925,2489.0,2486.5,0.122241]
[1724796427388,9.8757,2488.8,2486.9,9.373]
[1724796427594,9.67955708,2488.7,2486.9,9.373]
[1724796427902,9.3257,2488.5,2486.9,9.373]
[1724796428259,0.35396589,2488.4,2486.8,5.64285704]
[1724796428559,0.55,2488.6,2486.5,0.122241]
[1724796428560,9.3257,2488.2,2486.5,0.122241]
[1724796428960,0.5899424,2488.6,2486.5,0.122241]
[1724796428961,9.8757,2488.1,2486.5,0.122241]
[1724796429994,9.8757,2488.1,2486.5,3.122241]
[1724796430400,9.8757,2488.1,2486.5,0.122241]
[1724796430702,9.67972218,2488.0,2486.5,0.122241]
[1724796430903,9.3257,2487.2,2486.5,0.122241]
[1724796431056,9.88519208,2487.1,2486.5,0.122241]
[1724796431257,5.64285704,2486.6,2486.1,0.83651614]
[1724796431460,9.8757,2486.5,2486.1,0.83651614]
[1724796432399,9.3257,2486.5,2486.1,0.83651614]
[1724796432565,9.3257,2486.3,2486.1,0.83651614]
[1724796432796,9.3257,2486.3,2484.9,5.64285704]
[1724796432797,9.2757,2486.3,2485.0,0.08046314]
[1724796432984,0.92757,2486.2,2485.0,0.08046314]
[1724796433185,0.92757,2486.2,2483.5,0.20628397]
[1724796433387,0.92757,2486.2,2484.9,5.64285704]
[1724796434029,0.7873074,2486.4,2484.9,5.64285704]
[1724796434196,1.3373074,2486.3,2484.9,5.64285704]
[1724796434404,0.7873074,2486.1,2484.9,5.64285704]
[1724796434920,0.7873074,2486.1,2485.5,0.00021335]
[1724796435490,0.7873074,2486.1,2483.1,37.08253445]
[1724796435491,3.0708074,2486.1,2482.6,3.04016486]
[1724796435683,5.64285704,2484.6,2481.5,3.72619146]
[1724796435885,20.67953349,2486.0,2481.7,1.71908874]
[1724796435886,4.02934,2481.8,2481.7,1.71908874]
[1724796436136,4.02934,2481.8,2477.0,4.87989405]
[1724796436137,1.97423308,2478.4,2477.1,0.71446318]
[1724796436285,1.97423308,2478.4,2475.2,2.11052609]
[1724796436286,0.05,2473.7,2473.6,4.88639554]
[1724796436518,0.05,2473.7,2472.8,1.68999429]
[1724796436519,2.0,2472.6,2471.7,0.2032671]
[1724796436706,0.7829269,2472.5,2471.8,0.22679482]
[1724796436901,0.7829269,2472.0,2471.9,3.4682209]
[1724796437153,0.34253052,2472.0,2471.9,0.65266756]
[1724796437452,2.34805363,2472.6,2471.9,0.65266756]
[1724796437453,0.34253052,2472.7,2471.9,0.22679482]
[1724796437618,1.17402681,2473.1,2472.0,0.22679482]
[1724796437967,2.34805363,2473.9,2472.0,0.22679482]
[1724796437968,1.17402681,2473.9,2472.6,5.64285704]
[1724796438104,3.51658992,2473.9,2473.7,6.02446125]
[1724796438306,1.17402681,2474.5,2473.8,0.17486754]
[1724796438541,1.56417911,2474.6,2473.8,0.17486754]
[1724796438542,1.17402681,2474.6,2474.2,6.02446125]
[1724796438856,1.17509672,2474.8,2474.1,6.02446125]
[1724796439019,1.17509672,2475.1,2474.7,6.02446125]
[1724796439367,4.69014834,2475.0,2474.7,6.02446125]
[1724796439520,1.17509672,2475.8,2474.8,0.38831688]
[1724796439722,2.58064005,2475.8,2475.3,6.02446125]
[1724796440063,4.68895505,2475.8,2475.3,6.02446125]
[1724796440267,1.56417911,2475.4,2474.6,6.51190313]
[1724796440435,3.5137109,2475.3,2475.2,6.02446125]
[1724796440756,2.34805363,2475.9,2475.2,6.02446125]
[1724796440757,1.17555226,2475.7,2475.2,9.51190313]
[1724796440970,1.17602968,2476.4,2475.4,9.2547]
[1724796441119,1.95522389,2476.6,2475.5,0.45618971]
[1724796441120,1.17602968,2476.6,2475.5,0.45618971]
[1724796441322,1.17602968,2476.2,2475.4,15.27916125]
[1724796441633,1.17602968,2476.2,2476.0,6.02446125]
[1724796441634,12.64686641,2476.1,2476.0,6.02446125]
[1724796441829,8.02344837,2476.1,2476.0,10.11779283]
[1724796442046,4.78247418,2476.1,2476.0,10.11712022]
[1724796442265,7.13486882,2476.1,2476.0,10.66712022]
[1724796442562,1.1760453,2476.2,2476.0,6.92170471]
[1724796442764,1.1760453,2476.5,2476.3,0.05]
[1724796442933,1.1760453,2476.9,2476.5,9.2547]
[1724796443259,1.92441613,2477.1,2477.0,0.05]
[1724796443470,1.15427156,2477.2,2477.0,1.19505072]
[1724796443667,1.15420878,2477.7,2477.3,0.05]
[1724796443867,1.15420878,2478.1,2477.6,0.05]
[1724796444020,1.15420878,2478.1,2477.7,0.63069147]
[1724796444224,1.15420878,2478.1,2477.9,0.05]
[1724796444472,1.15420878,2478.3,2478.0,0.55]
[1724796444668,1.15420878,2478.5,2478.2,9.5948]
[1724796444964,1.15420878,2478.9,2478.4,0.05]
[1724796445117,1.15420878,2478.8,2478.5,0.55]
[1724796445322,1.15420878,2478.9,2478.5,0.55]
[1724796445517,0.3531,2479.0,2478.4,0.05]
[1724796445518,0.3531,2479.0,2478.6,0.05]
[1724796445721,0.1949,2479.5,2478.8,6.03417]
[1724796446018,1.15420878,2480.3,2479.5,6.08304]
[1724796446215,1.91192219,2480.5,2479.8,2.0]
[1724796446216,1.15420878,2480.5,2479.8,2.0]
[1724796446418,1.91192219,2480.9,2480.0,0.05]
[1724796446419,1.15420878,2480.9,2480.0,0.05]
[1724796446619,11.79970663,2481.4,2480.0,0.05]
[1724796446620,1.15420878,2481.3,2480.1,1.45603456]
[1724796446858,9.5054,2481.4,2480.6,9.5948]
[1724796447077,9.5054,2481.4,2480.7,39.24006398]
[1724796447221,11.6133,2481.5,2480.8,2.08058072]
[1724796447428,1.0266219,2481.5,2481.1,2.0]
[1724796447653,1.0266219,2481.5,2481.2,0.08056283]
[1724796447862,1.0266219,2481.5,2481.3,0.55]
[1724796448169,1.0266219,2481.5,2480.8,3.0]
[1724796448170,1.15420878,2481.4,2480.8,3.0]
[1724796448462,0.76121478,2481.2,2479.9,3.0]
[1724796448625,0.76121478,2481.2,2479.9,3.95948]
[1724796449164,1.0266219,2481.5,2480.0,0.41704999]
[1724796449373,1.1072841,2481.5,2480.1,0.437653]
[1724796449574,1.0266219,2481.5,2479.9,0.65816069]
[1724796449867,1.0266219,2481.5,2480.0,1.02529607]
[1724796450067,0.0806622,2481.4,2480.0,1.02529607]
[1724796450240,0.05,2480.2,2478.1,9.4133]
[1724796450563,0.05,2480.2,2477.3,9.4133]
[1724796450564,0.05,2479.3,2477.3,9.4133]
[1724796450779,0.81121478,2479.1,2477.4,0.94133]
[1724796450931,0.76121478,2478.7,2477.4,0.94133]
[1724796451283,0.0806622,2478.8,2477.5,0.53110626]
[1724796451592,0.05,2477.9,2475.3,2.0]
[1724796451726,0.05,2477.6,2475.5,2.32]
[1724796451928,0.05,2477.6,2475.6,35.0]
[1724796452166,0.05,2477.3,2475.5,2.32]
[1724796452341,0.05,2477.1,2475.3,0.41730662]
[1724796452674,0.05,2476.4,2474.5,0.37740949]
[1724796452875,0.00792421,2475.8,2474.2,1.584]
[1724796453021,0.05,2475.3,2473.4,4.01493556]
[1724796453225,0.00792421,2475.2,2473.3,1.584]
[1724796453428,0.00792421,2475.1,2473.4,35.4162285]
[1724796453662,0.00792421,2474.9,2473.4,0.35321783]
[1724796453874,0.00792421,2474.9,2472.9,0.05]
[1724796453875,0.00792421,2474.6,2472.2,9.9677]
[1724796454032,0.05,2473.5,2471.9,0.35321783]
[1724796454223,0.00792421,2474.3,2470.8,11.59991746]
[1724796454224,0.00792421,2473.1,2470.8,9.5648]
[1724796454557,0.05,2471.7,2470.8,0.41629433]
[1724796454873,9.8799,2472.7,2470.9,0.48105116]
[1724796454874,0.00792421,2472.0,2470.9,0.48105116]
[1724796455037,0.00792421,2472.4,2471.0,0.08092089]
[1724796455250,0.0806622,2472.5,2471.1,0.48105116]
[1724796455463,0.05,2472.4,2470.8,0.41637627]
[1724796455751,0.05,2472.7,2470.9,0.41445041]
[1724796455975,0.05,2472.7,2470.6,0.1669926]
[1724796455976,0.00792421,2471.9,2470.6,0.1669926]
[1724796456285,0.00792421,2471.2,2470.6,0.1669926]
[1724796456778,0.00558798,2472.6,2470.7,9.84137861]
[1724796457097,0.00792421,2474.4,2472.0,4.04418977]
[1724796457378,0.00792421,2475.2,2472.9,2.0]
[1724796457539,0.00792421,2475.2,2473.0,0.43774764]
[1724796457540,0.05,2474.8,2473.0,0.43774764]
[1724796457753,0.00792421,2474.8,2472.8,0.35690156]
[1724796457953,0.05,2475.8,2473.3,2.7]
[1724796458246,0.00792421,2476.9,2474.6,2.07505598]
[1724796458440,0.00792421,2476.8,2474.7,4.14885453]
[1724796458648,0.00792421,2477.1,2475.2,2.09470714]
[1724796458878,0.00792421,2477.7,2475.4,4.08865586]
[1724796459080,0.00792421,2477.7,2475.6,2.08270215]
[1724796459081,0.05,2477.4,2475.6,2.08270215]
[1724796459298,0.00792421,2477.8,2475.8,2.0]
[1724796459475,0.00792421,2477.8,2476.0,2.32]
[1724796459476,0.0806622,2477.7,2476.0,2.32]
[1724796459643,9.88782421,2477.3,2474.7,0.161818]
[1724796459836,0.05,2474.5,2472.1,2.09829307]
[1724796460036,2.0,2477.1,2471.8,9.4901]
[1724796460037,0.05,2475.3,2473.2,2.04041428]
[1724796460243,0.05,2475.7,2473.8,2.0]
[1724796460544,0.05,2476.5,2474.8,2.0]
[1724796460740,2.0,2479.6,2474.8,2.0]
[1724796460741,0.05,2476.2,2475.0,2.32]
[1724796460985,0.05,2476.8,2475.1,1.01644906]
[1724796461188,0.05,2479.0,2475.1,1.01644906]
[1724796461189,0.05,2476.9,2475.1,22.38950893]
[1724796461345,0.05,2475.7,2473.6,2.0]
[1724796461687,0.05,2476.4,2474.7,2.0]
[1724796461866,0.05,2476.8,2475.0,4.32]
[1724796462182,0.00792421,2477.5,2475.5,2.03469395]
[1724796462183,0.05,2477.0,2475.5,2.03469395]
[1724796462341,0.05,2476.5,2475.3,2.7]
[1724796462543,0.08858641,2477.5,2474.0,2.00670258]
[1724796462544,0.05,2475.9,2474.0,2.00670258]
[1724796462788,0.05,2476.3,2474.7,2.01485453]
[1724796462977,0.05,2476.2,2474.8,1.98548545]
[1724796463299,0.05,2476.2,2474.8,1.584]
[1724796463499,0.0806622,2477.5,2474.8,1.584]
[1724796463500,0.05,2476.4,2475.0,2.7]
[1724796463641,0.05,2477.0,2475.2,6.53759714]
[1724796463842,0.0806622,2477.5,2475.3,0.55]
[1724796463843,0.05,2476.1,2475.3,0.55]
[1724796464144,0.05,2475.9,2474.9,0.4029]
[1724796464372,0.0806622,2477.5,2474.9,0.4029]
[1724796464373,0.05,2476.3,2474.9,0.4029]
[1724796464576,0.05,2476.7,2475.1,2.00359741]
[1724796464764,0.05,2476.7,2475.2,0.34331642]
[1724796464972,0.05,2476.5,2475.3,3.6605993]
[1724796465143,0.05,2476.3,2475.4,3.0]
[1724796465345,0.05,2476.3,2475.4,0.4584]
[1724796465575,0.05,2476.1,2475.1,1.66475831]
[1724796465784,0.05,2476.2,2475.2,1.584]
[1724796466045,0.05,2476.8,2475.4,2.08865586]
[1724796466266,0.05,2476.8,2475.5,2.03469395]
[1724796466500,1.07671842,2477.5,2475.3,35.0]
[1724796466501,0.05,2475.9,2475.3,35.0]
[1724796466732,1.07671842,2477.5,2475.2,1.584]
[1724796466733,0.05,2476.3,2475.2,1.584]
[1724796467080,0.05,2476.5,2475.3,35.0]
[1724796467287,0.05,2476.5,2475.2,2.09470714]
[1724796467288,0.05,2475.5,2474.9,2.08272402]
[1724796467516,0.05,2476.1,2475.0,0.54972312]
[1724796467725,0.05,2476.5,2475.2,2.09470714]
[1724796467925,0.05,2476.7,2475.5,2.43759395]
[1724796468221,0.05,2476.7,2475.6,1.584]
[1724796468430,0.05,2476.2,2474.7,3.45145453]
[1724796468598,0.05,2476.5,2474.8,5.05015493]
[1724796468925,0.05,2476.2,2475.0,0.4029]
[1724796469134,0.05,2476.2,2475.1,0.55]
[1724796469311,0.05,2476.5,2475.3,2.4794993]
[1724796469510,0.00141316,2475.5,2475.4,2.134]
[1724796469828,0.00141316,2475.5,2474.9,0.49330369]
[1724796470000,0.00141316,2475.5,2475.0,9.83255379]
[1724796470198,0.00141316,2475.5,2475.2,2.09470714]
[1724796470433,1.09566184,2477.5,2474.9,1.584]
[1724796470434,0.99039353,2477.5,2474.9,1.584]
[1724796470663,9.8799,2477.4,2474.9,1.584]
[1724796470874,9.8799,2477.2,2473.6,2.45987261]
[1724796471038,9.8799,2477.0,2473.8,36.584]
[1724796471223,9.8799,2477.0,2474.0,2.00670258]
[1724796471419,9.8799,2477.0,2473.8,36.98146681]
[1724796471420,9.8799,2476.8,2473.8,1.584]
[1724796471623,9.8799,2476.8,2473.9,2.04232396]
[1724796471851,9.8799,2476.8,2473.8,1.584]
[1724796472049,10.4799,2476.7,2473.6,0.4029]
[1724796472233,1.04799,2476.6,2473.7,3.54029]
[1724796472454,1.04799,2476.6,2474.0,4.04202]
[1724796472660,1.04799,2476.6,2474.3,4.04149]
[1724796472827,1.04799,2476.6,2474.4,35.0]
[1724796473027,1.092789,2476.5,2474.5,0.9503012]
[1724796473265,1.092789,2476.5,2474.1,1.584]
[1724796473436,10.5349,2476.4,2473.5,35.0]
[1724796473639,10.5349,2476.4,2473.4,2.32]
[1724796473640,10.5349,2476.4,2473.6,3.732]
[1724796473837,10.5349,2476.4,2472.2,9.1179]
[1724796473838,10.0849,2476.3,2472.2,15.11272]
[1724796474034,9.9849,2476.1,2473.2,2.04041428]
[1724796474275,9.9849,2476.1,2473.4,2.05667171]
[1724796474471,9.9849,2476.1,2473.3,2.89253606]
[1724796474639,0.99849,2476.0,2473.6,2.05697261]
[1724796474829,0.99849,2476.0,2473.7,0.99936545]
[1724796475029,9.9849,2476.1,2473.7,0.99936545]
[1724796475030,9.9849,2476.1,2474.0,2.00670258]
[1724796475236,9.9849,2476.1,2474.1,0.91855289]
[1724796475572,9.9849,2476.1,2473.9,4.36232396]
[1724796475865,9.9849,2476.1,2474.0,3.08080412]
[1724796476066,9.9849,2476.1,2474.1,36.53322988]
[1724796476273,9.9849,2476.1,2474.4,4.236]
[1724796476443,9.9849,2476.1,2474.5,0.9529]
[1724796476636,9.9849,2476.1,2474.1,0.58032988]
[1724796477061,9.9849,2476.1,2473.3,1.30853606]
[1724796477268,9.9849,2476.1,2473.4,1.584]
[1724796477438,9.9849,2476.1,2473.5,2.02433212]
[1724796477636,9.2276,2475.9,2472.6,2.05954293]
[1724796477838,9.2276,2475.9,2473.0,0.46074463]
[1724796478036,0.92276,2475.8,2473.2,2.04041428]
[1724796478269,9.2276,2475.9,2473.5,4.02433212]
[1724796478474,9.2276,2475.9,2474.0,0.4029]
[1724796478769,9.2276,2475.9,2474.2,4.6389]
[1724796478975,9.2276,2475.9,2474.3,3.0]
[1724796479139,0.92276,2475.8,2473.3,2.32]
[1724796479470,0.05,2476.4,2473.5,2.02433212]
[1724796479471,9.2276,2475.7,2473.5,2.02433212]
[1724796479677,9.2276,2475.7,2473.4,2.05667171]
[1724796479881,0.92276,2475.6,2473.6,6.29297261]
[1724796480039,0.92276,2475.6,2473.8,2.01571354]
[1724796480380,9.2276,2475.7,2474.0,6.24270258]
[1724796480585,9.2276,2475.7,2474.2,6.236]
[1724796480749,9.2276,2475.7,2474.4,4.236]
[1724796480951,9.2276,2475.7,2474.5,41.16216461]
[1724796481166,9.2276,2475.7,2474.5,4.57816461]
[1724796481338,9.2276,2475.7,2474.6,3.0]
[1724796481535,9.2276,2475.7,2474.7,0.55]
[1724796481736,9.2276,2475.7,2474.8,1.6647993]
[1724796482046,9.2276,2477.3,2474.9,0.55]
[1724796482371,0.00792421,2477.0,2475.0,0.5134]
[1724796482677,0.00792421,2477.0,2474.6,2.07505598]
[1724796482678,9.2276,2476.3,2473.6,2.0]
[1724796482838,9.2276,2476.3,2474.3,2.7]
[1724796483041,9.2276,2476.3,2475.0,4.236]
[1724796483345,0.05,2478.4,2475.0,4.236]
[1724796483346,9.2276,2476.9,2475.2,4.236]
[1724796483681,9.2276,2476.9,2475.3,1.296309]
[1724796483893,9.2276,2476.9,2475.4,35.0]
[1724796484039,9.2276,2476.9,2475.5,3.0]
[1724796484240,0.00792421,2476.7,2475.2,3.0]
[1724796484440,9.2276,2476.9,2475.3,0.08076284]
[1724796484641,9.2276,2477.7,2475.5,2.03469395]
[1724796484879,0.00792421,2477.6,2475.6,1.17680391]
[1724796485086,0.00792421,2477.6,2475.7,4.236]
[1724796485242,9.2276,2477.7,2476.1,4.236]
[1724796485446,0.05,2479.5,2476.1,4.236]
[1724796485447,9.2276,2478.5,2476.7,4.236]
[1724796485646,9.2276,2478.5,2476.8,0.55]
[1724796485953,0.00792421,2478.4,2476.8,0.55]
[1724796486156,0.58513079,2478.2,2476.8,0.55]
[1724796486354,0.00792421,2477.9,2476.7,0.55]
[1724796486612,0.25276572,2477.8,2476.8,0.08073072]
[1724796486746,9.7485,2478.1,2476.7,0.55]
[1724796486747,9.75642421,2478.1,2476.9,0.55]
[1724796486943,9.7485,2478.1,2477.0,0.08071791]
[1724796487179,9.7485,2478.1,2477.1,0.55]
[1724796487645,2.88837719,2477.2,2476.4,0.55088473]
[1724796487842,7.72069683,2477.1,2476.7,2.06230408]
[1724796488076,7.72069683,2477.1,2476.5,1.18160624]
[1724796488077,1.23793935,2476.9,2476.5,2.64450475]
[1724796488298,1.65055574,2477.6,2476.6,2.4029]
[1724796488597,3.41189555,2478.4,2477.9,1.65058764]
[1724796488598,1.65048224,2478.3,2477.9,1.65058764]
[1724796488743,1.65048224,2478.8,2478.1,2.01930852]
[1724796488939,1.65048224,2479.1,2478.4,2.0244726]
[1724796489189,1.65048224,2479.4,2478.5,1.40858172]
[1724796489389,5.15813215,2479.7,2478.6,1.11950543]
[1724796489554,1.65048224,2479.8,2478.6,36.11950543]
[1724796489754,1.65048224,2479.9,2478.5,4.03469]
[1724796489961,1.65048224,2480.0,2478.9,6.73402]
[1724796490298,8.20272106,2480.8,2478.9,6.73402]
[1724796490299,1.65048224,2480.7,2479.2,0.4029]
[1724796490596,9.832,2481.1,2479.7,2.7]
[1724796490742,1.65048224,2480.5,2479.3,36.596555]
[1724796490951,1.65048224,2480.5,2479.3,0.55]
[1724796491448,2.67710414,2480.9,2479.4,35.0]
[1724796491650,1.0266219,2480.9,2479.5,3.48275606]
[1724796491956,1.0266219,2480.9,2479.6,3.0]
[1724796492177,1.65048224,2480.7,2479.7,0.55]
[1724796492380,1.0266219,2480.9,2479.7,0.55]
[1724796492585,1.65048224,2480.7,2479.8,0.08061952]
[1724796492891,1.65048224,2480.3,2479.9,0.08063265]
[1724796493079,1.0266219,2480.9,2479.2,2.03172785]
[1724796493384,1.65048224,2480.8,2479.3,11.96186467]
[1724796493584,2.67710414,2480.9,2479.4,2.0]
[1724796493892,2.58850414,2480.9,2479.5,38.53975421]
[1724796494074,1.65048224,2480.8,2480.1,2.7]
[1724796494389,0.9380219,2480.9,2480.4,2.08270346]
[1724796494693,0.9380219,2480.9,2480.3,0.4029]
[1724796494852,0.9380219,2480.9,2480.5,0.4029]
[1724796495047,0.9380219,2480.9,2480.6,0.55]
[1724796495497,0.9380219,2480.9,2480.7,0.08059696]
[1724796495701,0.9380219,2480.9,2480.5,0.4029]
[1724796495859,0.9380219,2480.9,2480.2,3.0]
[1724796496194,0.9380219,2480.9,2480.2,0.3]
[1724796496349,0.9380219,2480.9,2480.4,0.4029]
[1724796496545,0.9380219,2480.9,2480.4,3.4029]
[1724796497294,0.9380219,2480.9,2480.5,0.55]
[1724796497495,0.9380219,2480.9,2480.6,0.08059334]
[1724796497695,0.9380219,2480.9,2479.9,8.72733019]
[1724796497899,0.9380219,2480.9,2480.0,1.37473302]
[1724796498222,0.9380219,2480.9,2479.9,8.72733019]
[1724796498223,0.9380219,2480.9,2480.1,0.0806065]
[1724796498430,10.3832219,2480.9,2479.9,8.72733019]
[1724796498598,10.3832219,2480.9,2478.5,5.69507518]
[1724796498801,1.03832219,2480.8,2478.7,2.7]
[1724796499016,9.4452,2480.7,2477.1,9.4966]
[1724796499188,9.4452,2480.5,2477.4,1.038322]
[1724796499386,9.4452,2480.2,2477.3,0.4029]
[1724796499587,9.4952,2480.0,2477.2,1.35527962]
[1724796499885,9.4952,2480.0,2476.4,11.7551]
[1724796499886,9.4452,2479.3,2476.4,0.46322051]
[1724796500197,9.4452,2479.2,2476.2,0.46322051]
[1724796500418,9.4452,2479.2,2476.3,2.05517558]
[1724796500419,9.4952,2479.2,2476.3,2.05517558]
[1724796500617,9.4452,2479.2,2476.3,2.05517558]
[1724796500842,9.4452,2479.2,2476.4,2.0]
[1724796501044,0.94452,2479.1,2476.9,2.7]
[1724796501246,0.94452,2479.1,2477.0,0.53815696]
[1724796501904,0.94452,2479.1,2477.1,0.08068672]
[1724796502136,9.4452,2479.2,2477.1,0.53815423]
[1724796502308,9.4452,2479.2,2477.7,2.7]
[1724796502638,9.4452,2479.2,2477.8,3.0]
[1724796502806,9.4452,2479.2,2476.5,11.49021756]
[1724796503007,9.4452,2479.2,2476.6,2.7]
[1724796503303,0.94452,2479.1,2476.7,1.37847]
[1724796503506,9.1568,2479.0,2476.8,0.43352101]
[1724796503945,9.1568,2479.0,2476.6,2.7]
[1724796503946,9.2068,2479.0,2476.6,2.7]
[1724796504345,9.2068,2479.0,2475.9,0.43352101]
[1724796504506,9.1568,2478.8,2475.9,0.43352101]
[1724796504706,9.1568,2478.8,2476.0,9.22072691]
[1724796504906,9.1568,2478.8,2476.5,2.0]
[1724796505112,9.1568,2478.8,2476.6,9.24154547]
[1724796505319,9.1568,2478.8,2476.6,9.1608512]
[1724796505656,0.58470187,2480.1,2477.9,6.249]
[1724796505951,9.1568,2480.6,2478.5,2.7]
[1724796506148,9.1568,2480.6,2478.6,4.42253643]
[1724796506351,9.1568,2480.6,2478.6,3.55]
[1724796506536,2.07749764,2479.4,2478.7,0.0806491]
[1724796506741,2.07749764,2479.4,2478.8,0.55]
[1724796506742,2.93592126,2479.3,2478.8,0.55]
[1724796506910,3.73939706,2479.1,2478.0,8.72733019]
[1724796507257,3.73939706,2479.1,2477.1,11.14210759]
[1724796507258,0.83123352,2478.4,2477.2,0.4029]
[1724796507408,0.83123352,2478.7,2477.5,2.0]
[1724796507606,0.83123352,2478.8,2477.7,0.4029]
[1724796507844,2.93669865,2478.7,2477.7,0.4029]
[1724796508064,2.93669865,2478.7,2477.0,4.71399322]
[1724796508065,0.83123352,2478.5,2477.0,2.71399322]
[1724796508273,0.83123352,2478.1,2477.0,2.71399322]
[1724796508584,7.98081633,2478.4,2477.1,35.50339932]
[1724796508585,0.83123352,2478.4,2477.1,35.50339932]
[1724796508763,1.40390159,2478.3,2477.1,35.50339932]
[1724796508939,1.40404477,2478.2,2477.1,0.50339932]
[1724796509137,1.40404477,2478.2,2477.0,3.11689322]
[1724796509138,2.23527829,2478.1,2477.0,2.71399322]
[1724796509370,2.23527829,2478.1,2476.2,2.0]
[1724796509371,0.83123352,2477.7,2476.2,2.0]
[1724796509534,4.34158259,2477.6,2476.3,37.49975809]
[1724796509739,1.4044394,2477.5,2476.2,4.0246193]